[Event "Bangabandhu Premier Div League 2023-24"]
[Site "Dhaka"]
[Date "2024.02.03"]
[Round "3.8"]
[White "Manon, Reja Neer"]
[Black "Anata, Choudhury"]
[Result "1-0"]
[ECO "B66"]
[WhiteElo "2169"]
[BlackElo "2196"]
[Annotator "RC"]
[PlyCount "81"]
[EventDate "2024.02.01"]
[EventCountry "BAN"]
[SourceTitle "playchess.com"]
[Source "ChessBase"]
[SourceQuality "1"]
[TimeControl "40/5400+30:1800+30"]

1. e4 {[%emt 0:01:53]} c5 {[%emt 0:00:20]} 2. Nc3 {[%emt 0:00:15]} Nc6 {[%emt 0:00:14]} 3. Nge2 {[%emt 0:02:48]} d6 {[%emt 0:01:27]} 4. d4 {[%emt 0:00:46]} cxd4 {[%emt 0:00:07]} 5. Nxd4 {[%emt 0:00:03]} Nf6 {[%emt 0:00:09]} 6. Bg5 {[%emt 0:08:53]} e6 {[%emt 0:01:49]} 7. Qd2 {[%emt 0:00:22]} a6 {[%emt 0:00:32]} 8. O-O-O {[%emt 0:00:58]} Bd7 {[%emt 0:00:13]} 9. f3 {[%emt 0:03:01]} h6 {[%emt 1:30:09]} 10. Be3 {[%emt 0:01:42]} h5 {[%emt 0:00:30]} 11. Qe1 {[%emt 0:21:03]} Qc7 {[%emt 0:00:00]} 12. Nxc6 {[%emt 0:13:07]} bxc6 {[%emt 0:00:00]} 13. Rg1 {[%emt 0:42:09]} Be7 {[%emt 0:00:00]} 14. g4 {[%emt 0:00:00]} hxg4 {[%emt 0:00:00]} 15. fxg4 {[%emt 0:00:00]} Nh7 {[%emt 0:02:30]} 16. h4 {[%emt 0:01:30]} g5 {[%emt 0:00:30]} 17. h5 {[%emt 0:00:30]} O-O {[%emt 0:00:00]} 18. Qd2 {[%emt 0:00:00]} Rab8 {[%emt 0:00:00]} 19. Bd3 {[%emt 0:00:00]} e5 {[%emt 0:00:00]} 20. Bc4 {[%emt 0:01:30]} Be6 {[%emt 0:00:00]} 21. Bb3 {[%emt 0:00:00]} Rfd8 {[%emt 0:00:00]} 22. Rgf1 {[%emt 0:01:00]} Qb7 {[%emt 0:00:00]} 23. Qf2 {[%emt 0:00:00]} d5 {[%emt 0:00:00]} 24. Bc5 {[%emt 0:01:00]} Bf6 {[%emt 0:00:41]} 25. Qg2 {[%emt 0:00:00]} d4 {[%emt 0:01:03]} 26. Na4 {[%emt 0:00:00]} d3 {[%emt 0:00:27]} 27. Bxe6 {[%emt 0:00:41]} fxe6 {[%emt 0:00:07]} 28. cxd3 {[%emt 0:01:19]} Bg7 {[%emt 0:02:56]} 29. Qc2 {[%emt 0:00:00]} Nf6 {[%emt 0:00:36]} 30. Be3 {[%emt 0:00:08]} Nh7 {[%emt 0:00:14]} 31. Nc5 {[%emt 0:00:17]} Qe7 {[%emt 0:00:09]} 32. Qc4 {[%emt 0:00:16]} Re8 {[%emt 0:00:30]} 33. Nxa6 {[%emt 0:00:37]} Rb5 {[%emt 0:00:49]} 34. a4 {[%emt 0:00:41]} Rb7 {[%emt 0:00:41]} 35. Nc5 {[%emt 0:00:05]} Rbb8 {[%emt 0:00:27]} 36. Kc2 {[%emt 0:00:27]} Bf8 {[%emt 0:00:37]} 37. Rb1 {[%emt 0:00:38]} Qd6 {[%emt 0:00:33]} 38. b4 {[%emt 0:00:24]} Bh6 {[%emt 0:01:10]} 39. a5 {[%emt 0:00:25]} Kg7 {[%emt 0:00:00]} 40. a6 {[%emt 0:00:34]} Nf6 {[%emt 0:00:00]} 41. Rg1 {[%emt 0:31:06]} 1-0

[Event "Bangabandhu Premier Div League 2023-24"]
[Site "Dhaka"]
[Date "2024.02.03"]
[Round "3.8"]
[White "Tashriq Saihan, Shan"]
[Black "Diya Chowdhury"]
[Result "0-1"]
[ECO "B86"]
[WhiteElo "1772"]
[BlackElo "1881"]
[Annotator "NA RC"]
[PlyCount "80"]
[EventDate "2024.02.01"]
[EventCountry "BAN"]
[SourceTitle "playchess.com"]
[Source "ChessBase"]
[SourceQuality "1"]
[TimeControl "40/5400+30:1800+30"]

1. e4 {[%emt 0:02:27]} c5 {[%emt 0:00:17]} 2. Nf3 {[%emt 0:00:06]} e6 {[%emt 0:00:05]} 3. d4 {[%emt 0:00:05]} cxd4 {[%emt 0:00:05]} 4. Nxd4 {[%emt 0:00:06]} Nf6 {[%emt 0:00:05]} 5. Nc3 {[%emt 0:00:07]} d6 {[%emt 0:00:19]} 6. Bc4 {[%emt 0:00:42]} Be7 {[%emt 0:01:03]} 7. O-O {[%emt 0:00:16]} a6 {[%emt 0:00:18]} 8. Bb3 {[%emt 0:00:19]} Qc7 {[%emt 0:00:45]} 9. Kh1 {[%emt 0:00:53] B86: Sicilian Scheveningen/Najdorf: 6 Bc4, without early ...b5.} Nc6 {[%emt 0:03:01]} 10. Nxc6 {[%emt 0:00:36]} bxc6 {[%emt 0:00:31]} 11. Bf4 {[%emt 0:01:39]} O-O {[%emt 0:04:05]} 12. Bg3 {[%emt 0:02:33]} c5 {[%emt 0:02:54]} 13. Qe2 {[%emt 0:01:28]} Bb7 {[%emt 0:01:27]} 14. e5 {[%emt 0:01:17]} dxe5 {[%emt 0:09:10]} 15. Bxe5 {[%emt 0:01:18]} Qc6 {[%emt 0:00:42]} 16. f3 {[%emt 0:00:39]} Rac8 {[%emt 0:01:06]} 17. Bc4 {[%emt 0:01:36]} Nd7 {[%emt 0:02:35]} 18. Bg3 {[%emt 0:00:51]} Bf6 {[%emt 0:00:34]} 19. Ne4 $11 {[%emt 0:03:51]} (19. Rad1 $14 {might be stronger.} Rcd8 20. Rd6) 19... Be5 {[%emt 0:07:09]} 20. Rad1 {[%emt 0:03:21]} Bxg3 {[%emt 0:09:04]} 21. hxg3 {[%emt 0:00:39]} Rcd8 {[%emt 0:00:48]} 22. Rd6 {[%emt 0:05:06]} Qc7 {[%emt 0:00:43]} 23. Rfd1 {[%emt 0:01:02]} Bxe4 {[%emt 0:07:03]} 24. Qxe4 {[%emt 0:02:10]} Nf6 {[%emt 0:01:34]} 25. Qd3 {[%emt 0:01:00]} Rb8 {[%emt 0:00:56]} 26. Qa3 {[%emt 0:12:42]} Nd5 {[%emt 0:10:08]} 27. Rxa6 {[%emt 0:08:51]} Nb4 {[%emt 0:00:27]} 28. Rad6 {[%emt 0:03:40]} Nxc2 {[%emt 0:00:45]} 29. Qc3 {[%emt 0:00:50]} Nd4 {[%emt 0:00:10]} 30. R6xd4 {[%emt 0:01:11]} cxd4 {[%emt 0:00:16]} 31. Rxd4 {[%emt 0:00:11]} Kh8 {[%emt 0:03:13]} 32. Rg4 {[%emt 0:01:29]} f5 {[%emt 0:00:13]} 33. Rh4 {[%emt 0:01:40]} Qxg3 {[%emt 0:02:12]} 34. Rh3 {[%emt 0:00:49]} Qf2 {[%emt 0:01:34]} 35. b3 {[%emt 0:03:14]} Rbd8 {[%emt 0:00:49]} 36. Qb4 {[%emt 0:05:24]} f4 {[%emt 0:00:53]} 37. Bd3 {[%emt 0:04:32]} Rf5 {[%emt 0:06:49]} 38. Kh2 {[%emt 0:06:31]} Rg5 {[%emt 0:02:56]} 39. Rxh7+ {[%emt 0:05:23]} Kg8 {[%emt 0:00:04]} 40. Rxg7+ {[%emt 0:01:53]} Rxg7 {[%emt 0:00:14]} 0-1

[Event "Bangabandhu Premier Div League 2023-24"]
[Site "Dhaka"]
[Date "2024.02.03"]
[Round "3.9"]
[White "Rahman, Syed Mahfuzur"]
[Black "Shawket Bin, Osman Shaon"]
[Result "1/2-1/2"]
[ECO "E18"]
[WhiteElo "2087"]
[BlackElo "2030"]
[Annotator "NA RC"]
[PlyCount "104"]
[EventDate "2024.02.01"]
[EventCountry "BAN"]
[SourceTitle "playchess.com"]
[Source "ChessBase"]
[SourceQuality "1"]
[TimeControl "40/5400+30:1800+30"]

1. d4 {[%emt 0:00:53]} d5 {[%emt 0:03:23]} 2. Nf3 {[%emt 0:00:42]} Nf6 {[%emt 0:00:07]} 3. g3 {[%emt 0:00:46]} e6 {[%emt 0:01:16]} 4. Bg2 {[%emt 0:00:02]} Be7 {[%emt 0:00:06]} 5. O-O {[%emt 0:00:06]} O-O {[%emt 0:00:04]} 6. c4 {[%emt 0:00:03]} b6 {[%emt 0:03:18]} 7. Nc3 {[%emt 0:00:24]} Bb7 {[%emt 0:00:14]} 8. Ne5 {[%emt 0:00:48]} Nbd7 {[%emt 0:04:20]} 9. Qa4 $11 {[%emt 0:13:14]} Nb8 {[%emt 0:21:43]} 10. Rd1 {[%emt 0:05:57]} c6 {[%emt 0:01:53]} 11. Bf4 {[%emt 0:05:51]} Nfd7 {[%emt 0:59:36]} 12. Rac1 {[%emt 1:07:44]} Nxe5 {[%emt 0:00:00]} 13. Bxe5 {[%emt 0:00:00]} a6 {[%emt 0:00:00]} 14. cxd5 {[%emt 0:00:00]} cxd5 {[%emt 0:00:00]} 15. e4 {[%emt 0:00:00]} b5 {[%emt 0:02:00]} 16. Qc2 {[%emt 0:00:00]} b4 {[%emt 0:00:00]} 17. Na4 {[%emt 0:00:00]} dxe4 {[%emt 0:00:00]} 18. Bc7 {[%emt 0:00:00]} Qe8 {[%emt 0:01:30]} 19. Nc5 {[%emt 0:00:00]} Bd5 {[%emt 0:00:00]} 20. Nxe4 {[%emt 0:04:00]} Qd7 {[%emt 0:01:00]} 21. Bf4 {[%emt 0:00:00]} Qa7 {[%emt 0:00:00]} 22. Ng5 {[%emt 0:00:00]} Bxg5 {[%emt 0:00:00]} 23. Bxg5 {[%emt 0:00:00]} Bxg2 {[%emt 0:00:00]} 24. Kxg2 {[%emt 0:00:00]} h6 {[%emt 0:00:00]} 25. Bf4 {[%emt 0:00:00]} Qb7+ {[%emt 0:00:00]} 26. f3 {[%emt 0:00:00]} Nd7 {[%emt 0:00:00]} 27. Qc6 {[%emt 0:03:30]} Qxc6 {[%emt 0:00:00]} 28. Rxc6 {[%emt 0:00:00]} Nf6 {[%emt 0:00:00]} 29. Bd6 {[%emt 0:00:00]} Rfc8 {[%emt 0:00:00]} 30. Rdc1 {[%emt 0:00:00]} Rxc6 {[%emt 0:00:00]} 31. Rxc6 {[%emt 0:00:00]} Nd5 {[%emt 0:00:00]} 32. Kf2 {[%emt 0:00:00]} f6 {[%emt 0:00:00]} 33. Ke2 {[%emt 0:00:44]} Kf7 {[%emt 0:00:00]} 34. Bc5 {[%emt 0:01:10]} h5 {[%emt 0:01:21]} 35. Kd3 {[%emt 0:01:13]} h4 {[%emt 0:00:11]} 36. Ke4 {[%emt 0:00:41]} hxg3 {[%emt 0:00:18]} 37. hxg3 {[%emt 0:00:01]} a5 {[%emt 0:00:32]} 38. f4 {[%emt 0:00:09]} g6 {[%emt 0:02:06]} 39. Rd6 {[%emt 0:00:48]} Rh8 {[%emt 0:02:01]} 40. Rd7+ {[%emt 0:00:14]} Ke8 {[%emt 0:00:00]} 41. Ra7 {[%emt 0:31:08]} Rh2 {[%emt 0:31:12]} 42. Rxa5 {[%emt 0:00:47]} Rxb2 {[%emt 0:00:13]} 43. Ra6 {[%emt 0:00:00]} Kf7 {[%emt 0:00:00]} 44. Ra7+ {[%emt 0:00:00]} Kg8 {[%emt 0:00:00]} 45. Ra8+ {[%emt 0:02:05]} Kg7 {[%emt 0:00:00]} 46. Ra7+ {[%emt 0:00:00]} Kg8 {[%emt 0:00:00]} 47. Ra8+ {[%emt 0:00:00]} Kf7 {[%emt 0:00:00]} 48. Ra7+ {[%emt 0:00:00]} Ke8 {[%emt 0:00:00]} 49. Ra6 {[%emt 0:00:00]} Kf7 {[%emt 0:00:00]} 50. Ra7+ {[%emt 0:00:00]} Ke8 {[%emt 0:00:00]} 51. Ra6 {[%emt 0:00:00]} Nc7 {[%emt 0:07:36]} 52. Rb6 {[%emt 0:03:30]} Nd5 {[%emt 0:00:30]} 1/2-1/2

[Event "Bangabandhu Premier Div League 2023-24"]
[Site "Dhaka"]
[Date "2024.02.03"]
[Round "3.10"]
[White "Kushagra Mohan"]
[Black "Hasan, Sk. Rashedul"]
[Result "1-0"]
[ECO "B34"]
[WhiteElo "2374"]
[BlackElo "1807"]
[Annotator "RC"]
[PlyCount "75"]
[EventDate "2024.02.01"]
[EventCountry "BAN"]
[SourceTitle "playchess.com"]
[Source "ChessBase"]
[SourceQuality "1"]
[TimeControl "40/5400+30:1800+30"]

1. e4 {[%emt 0:00:02]} c5 {[%emt 0:31:15]} 2. Nf3 {[%emt 0:00:04]} g6 {[%emt 0:00:13]} 3. d4 {[%emt 0:00:04]} cxd4 {[%emt 0:00:05]} 4. Nxd4 {[%emt 0:00:00]} Nf6 {[%emt 0:00:15]} 5. Nc3 {[%emt 0:00:10]} Nc6 {[%emt 0:00:09]} 6. Nxc6 {[%emt 0:00:29]} bxc6 {[%emt 0:00:07]} 7. e5 {[%emt 0:00:02]} Ng8 {[%emt 0:00:24]} 8. Bc4 {[%emt 0:02:10]} Bg7 {[%emt 0:00:22]} 9. Bf4 {[%emt 0:00:18]} Qa5 {[%emt 0:01:45]} 10. Qe2 {[%emt 0:01:44]} d5 {[%emt 0:06:37]} 11. Bb3 {[%emt 0:00:45]} e6 {[%emt 0:12:52]} 12. O-O-O {[%emt 0:00:46]} Ne7 {[%emt 0:00:40]} 13. Bg5 {[%emt 0:03:37]} Qc7 {[%emt 0:03:11]} 14. Rde1 {[%emt 0:02:40]} h6 {[%emt 0:00:58]} 15. Bd2 {[%emt 0:01:01]} a5 {[%emt 0:04:03]} 16. f4 {[%emt 0:05:44]} Bd7 {[%emt 0:05:19]} 17. Be3 {[%emt 0:01:47]} c5 {[%emt 0:10:05]} 18. Nb5 {[%emt 0:00:34]} Qc6 {[%emt 0:00:06]} 19. Nd6+ {[%emt 0:00:20]} Kf8 {[%emt 0:00:06]} 20. c4 {[%emt 0:00:51]} d4 {[%emt 0:04:48]} 21. Bd2 {[%emt 0:00:33]} Qb6 {[%emt 0:01:16]} 22. Kb1 {[%emt 0:00:24]} a4 {[%emt 0:01:40]} 23. Bc2 {[%emt 0:00:02]} Rb8 {[%emt 0:02:15]} 24. Bc1 {[%emt 0:00:08]} Nc8 {[%emt 0:02:56]} 25. Ne4 {[%emt 0:00:22]} Qb4 {[%emt 0:02:44]} 26. Bd3 {[%emt 0:01:11]} Bc6 {[%emt 0:00:36]} 27. Rhf1 {[%emt 0:00:51]} Ke7 {[%emt 0:00:14]} 28. g4 {[%emt 0:00:09]} Bxe4 {[%emt 0:09:29]} 29. Qxe4 {[%emt 0:02:16]} Nb6 {[%emt 0:00:00]} 30. f5 {[%emt 0:00:48]} gxf5 {[%emt 0:00:00]} 31. gxf5 {[%emt 0:00:01]} exf5 {[%emt 0:00:00]} 32. Qxf5 {[%emt 0:00:03]} Rhf8 {[%emt 0:00:00]} 33. e6 {[%emt 0:00:42]} f6 {[%emt 0:00:42]} 34. Bd2 {[%emt 0:00:44]} Qxd2 {[%emt 0:00:24]} 35. Qxc5+ {[%emt 0:00:05]} Ke8 {[%emt 0:00:03]} 36. Bg6+ {[%emt 0:00:06]} Kd8 {[%emt 0:02:09]} 37. Qd6+ {[%emt 0:00:08]} Kc8 {[%emt 0:00:07]} 38. Qc6+ {[%emt 0:00:02]} 1-0

[Event "Bangabandhu Premier Div League 2023-24"]
[Site "Dhaka"]
[Date "2024.02.03"]
[Round "3.11"]
[White "Mihir Lal, Das"]
[Black "Sajidul, Haque"]
[Result "0-1"]
[ECO "D73"]
[WhiteElo "1936"]
[BlackElo "1922"]
[Annotator "NA RC"]
[PlyCount "122"]
[EventDate "2024.02.01"]
[EventCountry "BAN"]
[SourceTitle "playchess.com"]
[Source "ChessBase"]
[SourceQuality "1"]
[TimeControl "40/5400+30:1800+30"]

1. Nf3 {[%emt 0:00:02]} d5 {[%emt 0:00:07]} 2. g3 {[%emt 0:00:02]} g6 {[%emt 0:00:12]} 3. Bg2 {[%emt 0:00:02]} Bg7 {[%emt 0:00:10]} 4. O-O {[%emt 0:00:05]} c6 {[%emt 0:00:52]} 5. c4 {[%emt 0:00:45]} Nf6 {[%emt 0:00:15]} 6. d4 {[%emt 0:03:17]} dxc4 {[%emt 0:00:05]} 7. Na3 {[%emt 0:00:53]} b5 {[%emt 0:00:55]} 8. Nxb5 {[%emt 0:01:59]} cxb5 {[%emt 0:00:28]} 9. Ne5 {[%emt 0:03:05]} Nd5 {[%emt 0:00:09]} 10. a4 {[%emt 0:05:56]} f6 {[%emt 0:08:44]} 11. Nf3 {[%emt 0:00:04]} b4 {[%emt 0:03:00]} 12. e4 {[%emt 0:10:26]} Nc7 {[%emt 0:00:16]} 13. e5 {[%emt 0:00:40]} O-O {[%emt 0:03:21]} 14. exf6 {[%emt 0:00:16]} exf6 {[%emt 0:00:34]} 15. Nd2 {[%emt 0:01:23]} Nd5 {[%emt 0:01:09]} 16. Nxc4 $19 {[%emt 0:00:06]} Be6 {[%emt 0:02:53]} 17. Re1 {[%emt 0:00:10]} Bf7 {[%emt 0:00:19]} 18. Bf4 {[%emt 0:01:00]} Nc6 {[%emt 0:10:11]} 19. Bd6 {[%emt 1:09:49]} Re8 {[%emt 0:02:21]} 20. Rxe8+ {[%emt 0:00:00]} Qxe8 {[%emt 0:00:09]} 21. Bc5 {[%emt 0:00:00]} Rd8 {[%emt 0:04:11]} 22. Nd6 {[%emt 0:00:00]} Qe6 {[%emt 0:00:19]} 23. Nxf7 {[%emt 0:00:00]} Kxf7 {[%emt 0:00:34]} 24. Qd3 {[%emt 0:00:00]} f5 {[%emt 0:01:37]} 25. Kf1 {[%emt 0:03:00]} Re8 {[%emt 0:02:50]} 26. Qb3 {[%emt 0:00:00]} Ne3+ {[%emt 0:00:16]} 27. Qxe3 {[%emt 0:00:00]} Qc4+ {[%emt 0:00:12]} 28. Kg1 {[%emt 0:00:00]} Rxe3 {[%emt 0:00:10]} 29. fxe3 {[%emt 0:00:00]} Ne7 {[%emt 0:00:34]} 30. Bxa7 {[%emt 0:00:00]} Nd5 {[%emt 0:00:55]} 31. Re1 {[%emt 0:00:00]} b3 {[%emt 0:00:39]} 32. a5 {[%emt 0:00:00]} Nxe3 {[%emt 0:00:37]} 33. Rxe3 {[%emt 0:00:00]} Bxd4 {[%emt 0:00:13]} 34. Bxd4 {[%emt 0:00:00]} Qxd4 {[%emt 0:00:03]} 35. Kf2 {[%emt 0:00:00]} Qxb2+ {[%emt 0:00:11]} 36. Kf3 {[%emt 0:00:00]} Qa1 {[%emt 0:04:12]} 37. Kf4 {[%emt 0:00:00]} g5+ {[%emt 0:00:17]} 38. Kxf5 {[%emt 0:00:00]} b2 {[%emt 0:01:18]} 39. Bd5+ {[%emt 0:00:00]} Kg7 {[%emt 0:54:42]} 40. Be4 {[%emt 0:00:00]} Qxa5+ {[%emt 0:00:00]} 41. Kg4 {[%emt 0:22:22]} Qe5 {[%emt 0:00:00]} 42. Kf3 {[%emt 0:01:18]} g4+ {[%emt 0:00:00]} 43. Kf2 {[%emt 0:01:54]} Qf6+ {[%emt 0:00:00]} 44. Kg2 {[%emt 0:01:33]} Qd4 {[%emt 0:00:00]} 45. Re2 {[%emt 0:03:07]} h5 {[%emt 0:00:00]} 46. Bc2 {[%emt 0:08:04]} Qd5+ {[%emt 0:00:00]} 47. Be4 {[%emt 0:01:19]} Qb5 {[%emt 0:00:00]} 48. Rf2 {[%emt 0:00:00]} b1=Q {[%emt 0:00:00]} 49. Bxb1 {[%emt 0:00:00]} Qb7+ {[%emt 0:00:00]} 50. Kg1 {[%emt 0:00:00]} Qxb1+ {[%emt 0:00:00]} 51. Kg2 {[%emt 0:00:00]} Kg6 {[%emt 0:00:00]} 52. Rf1 {[%emt 0:00:00]} Qe4+ {[%emt 0:00:00]} 53. Kg1 {[%emt 0:00:00]} Kg5 {[%emt 0:00:00]} 54. Kf2 {[%emt 0:00:00]} h4 {[%emt 0:00:00]} 55. Kg1 {[%emt 0:00:00]} Qe3+ {[%emt 0:00:00]} 56. Kg2 {[%emt 0:00:39]} Qe4+ {[%emt 0:00:00]} 57. Kg1 {[%emt 0:00:56]} Qd4+ {[%emt 0:00:00]} 58. Kh1 {[%emt 0:00:52]} Qd5+ {[%emt 0:00:00]} 59. Kg1 {[%emt 0:00:05]} h3 {[%emt 0:00:00]} 60. Rf2 {[%emt 0:00:11]} Qd4 {[%emt 0:00:00]} 61. Kh1 {[%emt 0:01:42]} Qa1+ {[%emt 0:00:00]} 0-1

[Event "Bangabandhu Premier Div League 2023-24"]
[Site "Dhaka"]
[Date "2024.02.03"]
[Round "3.12"]
[White "Suvradeepta, Das"]
[Black "Abdullah Al, Raison"]
[Result "1-0"]
[ECO "E05"]
[WhiteElo "2141"]
[BlackElo "1839"]
[Annotator "RC"]
[PlyCount "89"]
[EventDate "2024.02.01"]
[EventCountry "BAN"]
[SourceTitle "playchess.com"]
[Source "ChessBase"]
[SourceQuality "1"]
[TimeControl "40/5400+30:1800+30"]

1. d4 {[%emt 0:00:27]} Nf6 {[%emt 0:00:48]} 2. c4 {[%emt 0:00:09]} e6 {[%emt 0:00:04]} 3. Nf3 {[%emt 0:00:05]} d5 {[%emt 0:00:16]} 4. g3 {[%emt 0:00:05]} Be7 {[%emt 0:00:29]} 5. Bg2 {[%emt 0:00:07]} O-O {[%emt 0:00:12]} 6. O-O {[%emt 0:00:25]} dxc4 {[%emt 0:00:07]} 7. Qc2 {[%emt 0:00:05]} a6 {[%emt 0:00:13]} 8. a4 {[%emt 0:00:07]} Bd7 {[%emt 0:01:06]} 9. Qxc4 {[%emt 0:00:11]} Bc6 {[%emt 0:00:54]} 10. Bg5 {[%emt 0:00:11]} Nbd7 {[%emt 0:00:39]} 11. Nc3 {[%emt 0:08:12]} h6 {[%emt 1:31:12]} 12. Bxf6 {[%emt 0:00:28]} Nxf6 {[%emt 0:00:00]} 13. Qd3 {[%emt 0:03:03]} Bxf3 {[%emt 0:00:00]} 14. Bxf3 {[%emt 0:00:50]} c6 {[%emt 0:00:00]} 15. Rfd1 {[%emt 0:02:26]} a5 {[%emt 0:00:00]} 16. e4 {[%emt 1:21:39]} Qb6 {[%emt 0:02:30]} 17. Rd2 {[%emt 0:00:00]} Rfd8 {[%emt 0:00:00]} 18. Qe3 {[%emt 0:00:00]} Rac8 {[%emt 0:00:00]} 19. Rad1 {[%emt 0:00:00]} Rc7 {[%emt 0:00:00]} 20. h4 {[%emt 0:02:00]} Rcd7 {[%emt 0:00:00]} 21. Rd3 {[%emt 0:00:30]} Kf8 {[%emt 0:00:00]} 22. e5 {[%emt 0:00:00]} Nd5 {[%emt 0:00:00]} 23. Bxd5 {[%emt 0:00:00]} cxd5 {[%emt 0:00:00]} 24. Nb5 {[%emt 0:00:00]} Rc8 {[%emt 0:00:00]} 25. Rc1 {[%emt 0:00:00]} Rdd8 {[%emt 0:00:00]} 26. Rdc3 {[%emt 0:00:00]} Rc6 {[%emt 0:00:00]} 27. Qd3 {[%emt 0:00:00]} Kg8 {[%emt 0:00:00]} 28. R3c2 {[%emt 0:00:00]} Rdc8 {[%emt 0:00:00]} 29. Kg2 {[%emt 0:00:00]} Rxc2 {[%emt 0:00:00]} 30. Rxc2 {[%emt 0:00:00]} Rxc2 {[%emt 0:00:00]} 31. Qxc2 {[%emt 0:00:00]} Qc6 {[%emt 0:00:00]} 32. Qxc6 {[%emt 0:00:00]} bxc6 {[%emt 0:00:00]} 33. Na7 {[%emt 0:00:00]} c5 {[%emt 0:00:00]} 34. Nc6 {[%emt 0:00:00]} Kf8 {[%emt 0:00:00]} 35. Nxa5 {[%emt 0:01:52]} cxd4 {[%emt 0:00:00]} 36. Nc6 {[%emt 0:00:16]} Bc5 {[%emt 0:00:00]} 37. a5 {[%emt 0:01:24]} d3 {[%emt 0:00:00]} 38. Kf1 {[%emt 0:00:20]} d2 {[%emt 0:00:00]} 39. Ke2 {[%emt 0:00:01]} Bxf2 {[%emt 0:00:00]} 40. a6 {[%emt 0:00:19]} f6 {[%emt 0:00:00]} 41. exf6 {[%emt 0:31:00]} gxf6 {[%emt 0:11:05]} 42. Kxd2 {[%emt 0:04:04]} Ke8 {[%emt 0:00:14]} 43. a7 {[%emt 0:00:00]} Bxa7 {[%emt 0:00:00]} 44. Nxa7 {[%emt 0:00:00]} Kd7 {[%emt 0:00:00]} 45. Kd3 {[%emt 0:00:00]} 1-0

[Event "Bangabandhu Premier Div League 2023-24"]
[Site "Dhaka"]
[Date "2024.02.04"]
[Round "4.1"]
[White "Abu Sufian, Shakil"]
[Black "Mrittika Mallick"]
[Result "1-0"]
[ECO "B51"]
[WhiteElo "2199"]
[BlackElo "1859"]
[Annotator "ChessBase"]
[PlyCount "140"]
[EventDate "2024.02.01"]
[EventCountry "BAN"]
[SourceTitle "playchess.com"]
[Source "ChessBase"]
[SourceQuality "1"]
[TimeControl "40/5400+30:1800+30"]

1. e4 {[%emt 0:14:53]} c5 {[%emt 0:00:09]} 2. Nf3 {[%emt 0:00:15]} d6 {[%emt 0:00:07]} 3. Bb5+ {[%emt 0:00:04]} Nd7 {[%emt 0:00:13]} 4. d4 {[%emt 0:01:47]} cxd4 {[%emt 0:00:18]} 5. Qxd4 {[%emt 0:02:43]} a6 {[%emt 0:01:05]} 6. Bxd7+ {[%emt 0:00:14]} Bxd7 {[%emt 0:00:06]} 7. Nc3 {[%emt 1:14:04]} e5 {[%emt 0:02:28]} 8. Qd3 {[%emt 0:00:00]} h6 {[%emt 1:30:04]} 9. O-O {[%emt 0:00:00]} Nf6 {[%emt 0:00:00]} 10. Nd2 {[%emt 0:01:30]} b5 {[%emt 0:01:00]} 11. Rd1 {[%emt 0:00:30]} Rc8 {[%emt 0:00:30]} 12. Nf1 {[%emt 0:00:30]} b4 {[%emt 0:00:00]} 13. Nd5 {[%emt 0:00:00]} Nxd5 {[%emt 0:00:00]} 14. exd5 {[%emt 0:00:00]} Qb6 {[%emt 0:01:30]} 15. Ne3 {[%emt 0:01:30]} Qb5 {[%emt 0:00:30]} 16. Qxb5 {[%emt 0:00:30]} axb5 {[%emt 0:00:30]} 17. Bd2 {[%emt 0:00:00]} f5 {[%emt 0:00:30]} 18. Rac1 {[%emt 0:00:00]} f4 {[%emt 0:00:00]} 19. Nf1 {[%emt 0:01:30]} Ra8 {[%emt 0:01:00]} 20. Bxb4 {[%emt 0:00:00]} Rxa2 {[%emt 0:00:30]} 21. Ra1 {[%emt 0:01:00]} Rxb2 {[%emt 0:00:00]} 22. Ra8+ {[%emt 0:00:00]} Ke7 {[%emt 0:00:00]} 23. c3 {[%emt 0:01:00]} g5 {[%emt 0:01:30]} 24. Ra6 {[%emt 0:00:30]} Kf7 {[%emt 0:00:30]} 25. Ra7 {[%emt 0:00:30]} Ke8 {[%emt 0:00:30]} 26. Rda1 {[%emt 0:00:30]} Rg8 {[%emt 0:00:30]} 27. Rb7 {[%emt 0:00:30]} Rg7 {[%emt 0:00:00]} 28. Ra8+ {[%emt 0:00:00]} Ke7 {[%emt 0:00:00]} 29. Ba5 {[%emt 0:01:00]} e4 {[%emt 0:01:30]} 30. Bd8+ {[%emt 0:00:30]} Kf7 {[%emt 0:00:30]} 31. Rxd7+ {[%emt 0:00:00]} Kg6 {[%emt 0:00:30]} 32. Raa7 {[%emt 0:01:00]} Rc2 {[%emt 0:00:30]} 33. Be7 {[%emt 0:00:30]} Bxe7 {[%emt 0:00:00]} 34. Rxe7 {[%emt 0:00:30]} Rxe7 {[%emt 0:00:00]} 35. Rxe7 {[%emt 0:00:00]} Kf5 {[%emt 0:01:30]} 36. h3 {[%emt 0:01:00]} h5 {[%emt 0:00:30]} 37. Re6 {[%emt 0:00:30]} Rxc3 {[%emt 0:00:00]} 38. Rxd6 {[%emt 0:00:30]} Rd3 {[%emt 0:01:00]} 39. Rd8 {[%emt 0:00:00]} Ke5 {[%emt 0:00:00]} 40. Rg8 {[%emt 0:00:11]} Rxd5 {[%emt 0:01:00]} 41. Rxg5+ {[%emt 0:31:19]} Kd4 {[%emt 0:30:30]} 42. Rg8 {[%emt 0:00:30]} b4 {[%emt 0:00:00]} 43. Rb8 {[%emt 0:00:00]} Kc3 {[%emt 0:00:00]} 44. g3 {[%emt 0:01:00]} f3 {[%emt 0:00:00]} 45. Ne3 {[%emt 0:00:30]} Rc5 {[%emt 0:00:00]} 46. Nd1+ {[%emt 0:00:00]} Kd3 {[%emt 0:00:00]} 47. Nb2+ {[%emt 0:00:00]} Ke2 {[%emt 0:00:00]} 48. Re8 {[%emt 0:01:30]} Rc1+ {[%emt 0:00:00]} 49. Kh2 {[%emt 0:00:00]} Rf1 {[%emt 0:04:00]} 50. Rxe4+ {[%emt 0:00:00]} Kd2 {[%emt 0:00:30]} 51. g4 {[%emt 0:01:30]} h4 {[%emt 0:00:30]} 52. Rxb4 {[%emt 0:00:00]} Rxf2+ {[%emt 0:00:00]} 53. Kg1 {[%emt 0:00:00]} Rg2+ {[%emt 0:00:00]} 54. Kf1 {[%emt 0:00:00]} Rh2 {[%emt 0:00:00]} 55. Re4 {[%emt 0:00:00]} Kc3 {[%emt 0:00:00]} 56. Nd1+ {[%emt 0:00:25]} Kd3 {[%emt 0:00:00]} 57. Re3+ {[%emt 0:00:04]} Kd2 {[%emt 0:00:00]} 58. Rxf3 {[%emt 0:03:01]} Rh1+ {[%emt 0:00:00]} 59. Kf2 {[%emt 0:00:00]} Rxd1 {[%emt 0:00:00]} 60. g5 {[%emt 0:01:00]} Rb1 {[%emt 0:00:03]} 61. Rf4 {[%emt 0:00:00]} Rb5 {[%emt 0:00:31]} 62. g6 {[%emt 0:00:00]} Rg5 {[%emt 0:00:40]} 63. Rg4 {[%emt 0:00:00]} Rf5+ {[%emt 0:00:08]} 64. Kg2 {[%emt 0:02:00]} Rf8 {[%emt 0:01:55]} 65. g7 {[%emt 0:00:00]} Rg8 {[%emt 0:00:08]} 66. Kf3 {[%emt 0:00:00]} Kd3 {[%emt 0:00:16]} 67. Kf4 {[%emt 0:00:00]} Kd4 {[%emt 0:00:19]} 68. Kf5+ {[%emt 0:00:00]} Kd5 {[%emt 0:00:12]} 69. Kf6 {[%emt 0:00:00]} Kd6 {[%emt 0:00:07]} 70. Kf7 {[%emt 0:00:00]} Kd5 {[%emt 0:05:11]} 1-0